bitfinex/quotes_SOLUSD_20240601
["timestamp","ask_amount","ask_price","bid_price","bid_amount"]
[1717204217972,6.6477,166.98,166.86,11.8352]
[1717204217973,13.2945,166.99,166.87,78.08]
[1717204218176,4.77974949,167.0,166.89,5.52]
[1717204218376,2.2159,166.97,166.89,7.16651403]
[1717204218701,5.52,166.95,166.89,7.16651403]
[1717204219003,5.52,166.96,166.89,5.52]
[1717204219317,5.52,166.95,166.88,0.34]
[1717204219503,5.52,166.92,166.88,6.6014]
[1717204221395,5.52,166.92,166.88,6.4314]
[1717204221605,2.2162,166.95,166.85,21.34]
[1717204221606,5.52,166.9,166.85,21.34]
[1717204221908,5.52,166.89,166.82,5.52]
[1717204222390,2.2167,166.91,166.82,5.52]
[1717204222586,5.52,166.9,166.83,23.6]
[1717204222790,5.52,166.89,166.83,5.52]
[1717204223107,5.52,166.9,166.84,1.4978289]
[1717204224090,5.52,166.9,166.83,23.77]
[1717204225609,2.2166,166.92,166.84,5.52]
[1717204225788,5.52,166.93,166.87,5.52]
[1717204226209,2.2163,166.94,166.87,5.52]
[1717204226390,2.2162,166.95,166.87,5.52]
[1717204226714,5.52,166.93,166.87,5.52]
[1717204228806,5.52,166.93,166.86,6.1499]
[1717204229105,5.52,166.9,166.86,6.1499]
[1717204229288,5.52,166.91,166.85,11.6699]
[1717204230606,5.52,166.92,166.85,24.2299]
[1717204230803,5.52,166.92,166.86,0.17]
[1717204231213,5.52,166.92,166.86,0.34]
[1717204231393,7.7366,166.92,166.86,0.34]
[1717204231581,5.52,166.91,166.86,0.17]
[1717204231781,5.52,166.91,166.85,11.6699]
[1717204231984,5.52,166.91,166.85,6.1499]
[1717204233093,5.52,166.9,166.85,6.1499]
[1717204233402,5.52,166.89,166.83,16.4973]
[1717204234785,5.52,166.89,166.83,22.0173]
[1717204234988,5.52,166.89,166.82,0.17]
[1717204235190,5.52,166.88,166.82,5.69]
[1717204235385,5.52,166.87,166.81,6.1499]
[1717204235609,5.52,166.87,166.81,11.6699]
[1717204235797,7.7372,166.88,166.81,11.6699]
[1717204236004,5.52,166.87,166.81,6.1499]
[1717204237292,2.2169,166.9,166.82,0.17]
[1717204237504,5.52,166.88,166.82,0.34]
[1717204237910,5.52,166.89,166.82,5.86]
[1717204238417,5.52,166.89,166.82,0.34]
[1717204238587,5.52,166.88,166.82,0.34]
[1717204238794,5.52,166.88,166.82,5.52]
[1717204239002,5.52,166.87,166.81,29.7499]
[1717204240094,5.52,166.87,166.81,89.7499]
[1717204240306,5.52,166.88,166.83,6.284]
[1717204242722,5.52,166.87,166.83,6.284]
[1717204243220,5.52,166.87,166.8,33.3303]
[1717204243403,5.52,166.87,166.81,5.52]
[1717204243610,5.52,166.87,166.8,33.3303]
[1717204243806,5.52,166.87,166.81,5.52]
[1717204245422,2.2169,166.9,166.82,5.52]
[1717204245725,5.52,166.89,166.82,5.52]
[1717204246016,5.52,166.89,166.83,6.71814815]
[1717204246514,5.52,166.89,166.83,5.52]
[1717204246721,5.52,166.89,166.82,5.52]
[1717204246916,5.52,166.88,166.82,5.52]
[1717204250223,5.52,166.88,166.82,14.40971444]
[1717204250819,2.2168,166.91,166.83,23.77]
[1717204251024,5.52,166.91,166.84,5.69]
[1717204251932,2.2166,166.92,166.85,5.69]
[1717204252133,7.7366,166.92,166.85,5.69]
[1717204252715,5.52,166.91,166.85,5.69]
[1717204257930,5.52,166.91,166.85,0.17]
[1717204258311,5.52,166.91,166.85,5.69]
[1717204259635,2.2166,166.92,166.85,5.69]
[1717204259813,5.52,166.91,166.85,5.69]
[1717204260733,2.2165,166.93,166.85,23.77]
[1717204260936,4.4331,166.93,166.85,0.17]
[1717204261137,4.4333,166.92,166.82,51.19212893]
[1717204261326,5.52,166.86,166.82,15.17212893]
[1717204261854,5.52,166.86,166.81,8.88812893]
[1717204262134,5.52,166.85,166.81,8.88812893]
[1717204263120,5.52,166.85,166.79,8.88812893]
[1717204263326,2.2173,166.87,166.79,8.88812893]
[1717204263524,2.2172,166.88,166.79,8.88812893]
[1717204263725,5.52,166.85,166.79,8.88812893]
[1717204264209,2.2172,166.88,166.79,14.40812893]
[1717204264408,5.52,166.85,166.79,14.40812893]
[1717204265238,5.52,166.85,166.79,8.88812893]
[1717204265531,5.52,166.85,166.79,14.40812893]
[1717204267442,2.2173,166.87,166.79,14.40812893]
[1717204267633,5.52,166.85,166.79,14.40812893]
[1717204268133,5.52,166.85,166.79,14.41379771]
[1717204272340,5.52,166.86,166.8,5.52]
[1717204276450,5.52,166.86,166.79,14.4141068]
[1717204277041,2.2173,166.87,166.79,14.4141068]
[1717204277219,5.52,166.86,166.79,14.4141068]
[1717204277935,5.52,166.86,166.79,5.52]
[1717204278246,5.52,166.86,166.79,14.41368849]
[1717204279838,5.52,166.86,166.8,1.23489746]
[1717204280035,2.2173,166.87,166.8,1.23489746]
[1717204280230,5.52,166.86,166.8,1.23489746]
[1717204280556,5.52,166.86,166.8,2.3973481]
[1717204280841,5.52,166.85,166.8,2.3973481]
[1717204281042,5.52,166.85,166.8,8.5942481]
[1717204281419,5.52,166.85,166.8,6.1969]
[1717204281625,5.52,166.85,166.79,20.61058849]
[1717204281931,5.52,166.86,166.81,6.1969]
[1717204284042,5.52,166.85,166.81,6.1969]
[1717204295844,5.52,166.86,166.81,6.1969]
[1717204301660,5.52,166.86,166.8,21.4998]
[1717204302160,5.52,166.86,166.8,30.40070611]
[1717204304654,5.52,166.87,166.8,30.40070611]
[1717204305356,2.2173,166.87,166.81,8.90090611]
[1717204305554,5.52,166.87,166.81,8.90090611]
[1717204305862,7.7372,166.88,166.81,8.90090611]
[1717204307667,7.7372,166.88,166.81,14.42090611]
[1717204308860,5.52,166.87,166.81,14.42090611]
[1717204310047,7.7373,166.87,166.81,14.42090611]
[1717204310245,7.7373,166.87,166.81,8.90090611]
[1717204310443,7.7373,166.87,166.81,14.42090611]
[1717204311141,7.7373,166.87,166.81,14.42501982]
[1717204311337,7.7373,166.87,166.81,8.90501982]
[1717204311638,2.2174,166.86,166.82,6.4986]
[1717204311836,2.2174,166.86,166.81,23.90861982]
[1717204311837,7.7373,166.87,166.81,30.40721982]
[1717204313569,7.7373,166.87,166.81,35.92721982]
[1717204313962,7.7373,166.87,166.81,30.40721982]
[1717204314272,7.7373,166.87,166.81,35.92700383]
[1717204315466,2.2174,166.86,166.81,35.92700383]
[1717204315657,2.2174,166.86,166.83,6.1085]
[1717204315858,7.7373,166.87,166.83,6.1085]
[1717204316647,5.52,166.87,166.83,6.1085]
[1717204316967,7.7373,166.87,166.83,6.1085]
[1717204321753,7.7373,166.87,166.81,8.90481248]
[1717204321959,7.7374,166.86,166.81,8.90481248]
[1717204322362,5.52,166.86,166.81,8.90481248]
[1717204322661,5.52,166.85,166.81,8.90481248]
[1717204326578,5.52,166.84,166.81,8.90481248]
[1717204330073,7.7379,166.82,166.8,8.90481248]
[1717204330373,4.435,166.86,166.74,6.1822]
[1717204330374,5.52,166.81,166.79,8.90481248]
[1717204330873,5.52,166.8,166.79,8.90481248]
[1717204333362,5.52,166.81,166.79,8.90481248]
[1717204333763,2.2179,166.82,166.79,8.90481248]
[1717204333963,5.52,166.81,166.79,8.90481248]
[1717204335260,2.2179,166.82,166.79,8.90481248]
[1717204335482,5.52,166.81,166.79,8.90481248]
[1717204335654,2.2179,166.82,166.79,8.90481248]
[1717204335860,2.2178,166.83,166.79,8.90481248]
[1717204336079,7.7378,166.83,166.76,5.52]
[1717204336279,7.7378,166.83,166.79,8.90673307]
[1717204336480,5.52,166.82,166.79,8.90673307]
[1717204337877,5.52,166.81,166.79,8.90673307]
[1717204339996,5.52,166.83,166.79,8.90673307]
[1717204340785,5.52,166.83,166.8,8.90673307]
[1717204344171,5.52,166.83,166.8,8.91421874]
[1717204344981,7.7378,166.83,166.8,8.91421874]
[1717204345669,7.7378,166.83,166.8,8.91416562]
[1717204354700,7.7378,166.83,166.79,8.91416562]
[1717204356296,7.7378,166.83,166.8,8.91416562]
[1717204357802,7.7378,166.83,166.8,8.91090063]
[1717204358511,7.7378,166.83,166.8,8.91092704]
[1717204361988,5.52,166.82,166.8,8.91092704]
[1717204366924,7.7378,166.83,166.8,8.91092704]
[1717204368689,2.2178,166.83,166.8,8.91092704]
[1717204368905,5.52,166.82,166.8,8.91092704]
[1717204369607,5.52,166.81,166.8,8.91092704]
[1717204374712,7.738,166.81,166.79,8.91092704]
[1717204374904,5.52,166.8,166.79,8.91092704]
[1717204375409,5.52,166.8,166.74,24.2622]
[1717204375612,5.52,166.8,166.79,8.91497289]
[1717204375792,5.52,166.8,166.79,8.91496373]
[1717204377017,2.2182,166.8,166.79,8.91496373]
[1717204377202,7.7382,166.8,166.79,8.91496373]
[1717204377530,2.2184,166.79,166.72,16.1459]
[1717204377695,5.52,166.76,166.73,5.67902412]
[1717204377895,5.52,166.76,166.74,5.67902412]
[1717204378200,24.2982,166.8,166.75,5.67902412]
[1717204378406,2.2182,166.8,166.79,8.91905285]
[1717204378601,7.7382,166.8,166.79,8.91905285]
[1717204380424,17.6869,166.8,166.79,8.91905285]
[1717204381408,2.2184,166.78,166.71,6.0]
[1717204381615,2.2184,166.78,166.73,6.0]
[1717204381914,2.2184,166.78,166.74,11.68153525]
[1717204382114,2.2184,166.78,166.75,5.68153525]
[1717204382315,2.2184,166.78,166.76,5.68153525]
[1717204382521,2.2184,166.78,166.75,5.68153525]
[1717204382823,2.2184,166.78,166.76,5.68153525]
[1717204383036,2.2184,166.78,166.75,5.68153525]
[1717204383330,2.2184,166.78,166.76,5.68153525]
[1717204383531,2.2184,166.78,166.77,5.68153525]
[1717204383710,2.2184,166.78,166.7,30.5958]
[1717204383711,2.2184,166.78,166.71,5.68153525]
[1717204383911,2.2184,166.78,166.73,6.001]
[1717204384219,2.2184,166.78,166.74,5.68153525]
[1717204384532,2.2184,166.78,166.75,5.68153525]
[1717204384733,5.52,166.76,166.74,5.68153525]
[1717204384915,5.52,166.76,166.75,5.68153525]
[1717204385115,5.52,166.76,166.73,6.001]
[1717204385329,5.52,166.76,166.74,5.68153525]
[1717204385635,5.52,166.76,166.75,5.68153525]
[1717204385826,5.52,166.76,166.74,5.68153525]
[1717204386005,5.52,166.76,166.75,5.68153525]
[1717204386417,5.52,166.76,166.7,6.8258]
[1717204386418,5.52,166.76,166.73,6.001]
[1717204386618,5.52,166.76,166.74,5.68153525]
[1717204386835,5.52,166.76,166.75,5.68153525]
[1717204387436,5.52,166.76,166.74,5.68153525]
[1717204387736,5.52,166.76,166.75,5.68153525]
[1717204388241,5.52,166.76,166.74,5.68153525]
[1717204388457,5.52,166.76,166.75,5.68153525]
[1717204389240,5.52,166.76,166.73,6.001]
[1717204389442,5.52,166.76,166.74,5.68153525]
[1717204389647,5.52,166.76,166.75,5.68153525]
[1717204390021,5.52,166.76,166.74,5.68153525]
[1717204390219,5.52,166.76,166.75,5.68153525]
[1717204390422,5.52,166.76,166.71,17.84053525]
[1717204390747,5.52,166.76,166.73,6.001]
[1717204390942,5.52,166.76,166.74,5.68153525]
[1717204391144,5.52,166.75,166.74,5.68153525]
[1717204391443,7.7388,166.75,166.74,5.68153525]
[1717204392028,7.7388,166.75,166.68,5.68153525]
[1717204392229,2.2187,166.77,166.69,5.68153525]
[1717204392428,22.08,166.8,166.7,5.68153525]
[1717204392749,5.52,166.76,166.7,5.52]
[1717204392954,5.52,166.76,166.69,5.52]
[1717204393547,5.52,166.75,166.69,5.52]
[1717204394331,8.8649,166.81,166.7,5.52]
[1717204394652,5.52,166.76,166.7,5.52]
[1717204395550,5.52,166.77,166.69,78.42]
[1717204395725,5.52,166.77,166.71,5.52]
[1717204395926,7.7384,166.78,166.71,5.52]
[1717204396228,5.52,166.78,166.71,5.52]
[1717204396647,7.7384,166.78,166.71,5.52]
[1717204398249,2.2183,166.8,166.72,6.3671]
[1717204398436,7.7381,166.81,166.74,5.52]
[1717204398953,2.2182,166.8,166.74,5.52]
[1717204399336,7.7382,166.8,166.74,5.52]
[1717204399655,5.52,166.79,166.73,5.69]
[1717204399836,7.7382,166.8,166.74,6.3671]
[1717204400847,5.52,166.79,166.74,6.3671]
[1717204401047,5.52,166.79,166.74,6.1971]
[1717204404450,5.52,166.79,166.75,6.3496]
[1717204404764,5.52,166.8,166.74,6.3496]
[1717204405565,5.52,166.8,166.74,11.8696]
[1717204405765,5.52,166.8,166.74,6.3496]
[1717204405958,7.7381,166.81,166.74,11.8696]
[1717204406263,5.52,166.81,166.74,11.8696]
[1717204406471,5.52,166.81,166.75,5.52]
[1717204407266,2.2178,166.83,166.75,5.52]
[1717204407473,5.52,166.81,166.75,5.52]
[1717204407764,2.2178,166.83,166.75,5.52]
[1717204407944,4.4348,166.87,166.75,5.52]
[1717204407945,5.52,166.81,166.75,5.52]
[1717204408146,2.2177,166.84,166.77,6.3496]
[1717204408345,5.52,166.82,166.77,6.3496]
[1717204409565,2.2178,166.83,166.77,6.3496]
[1717204409862,5.52,166.82,166.77,6.3496]
[1717204410465,2.2178,166.83,166.77,6.3496]
[1717204410658,5.52,166.83,166.77,6.3496]
[1717204411167,5.52,166.83,166.77,11.8696]
[1717204413462,5.52,166.83,166.78,0.34]
[1717204413762,5.52,166.83,166.8,6.3496]
[1717204417871,16.56,166.88,166.8,6.3496]
[1717204418080,2.2174,166.86,166.8,6.3496]
[1717204418273,7.7374,166.86,166.8,6.3496]
[1717204418473,2.2174,166.86,166.79,12.0026]
[1717204418774,5.52,166.85,166.79,12.0026]
[1717204418981,5.52,166.84,166.78,23.94]
[1717204419159,2.2174,166.86,166.79,6.4826]
[1717204419355,2.2173,166.87,166.79,12.0026]
[1717204419758,5.52,166.85,166.79,12.0026]
[1717204419977,5.52,166.85,166.79,30.0826]
[1717204420177,5.52,166.85,166.81,6.3342]
[1717204421757,2.2173,166.87,166.81,6.3342]
[1717204422078,5.52,166.82,166.72,30.861525]
[1717204422374,5.52,166.76,166.72,6.3342]
[1717204422554,5.52,166.75,166.68,87.2502]
[1717204422761,5.52,166.74,166.68,87.2502]
[1717204423156,5.52,166.74,166.68,105.2502]
[1717204423757,5.52,166.74,166.69,0.17]
[1717204423953,5.52,166.74,166.7,6.3342]
[1717204424780,5.52,166.75,166.7,6.3342]
[1717204428787,5.52,166.74,166.67,0.1915417]
[1717204429083,5.52,166.73,166.67,43.7115417]
[1717204430180,5.52,166.73,166.68,0.17]
[1717204430390,5.52,166.73,166.68,6.6742]
[1717204431272,2.2186,166.77,166.69,29.8542]
[1717204431472,22.08,166.8,166.69,29.8542]
[1717204431473,5.52,166.76,166.7,0.34]
[1717204431673,2.2185,166.78,166.7,0.34]
[1717204431882,5.52,166.76,166.7,0.34]
[1717204433797,5.52,166.75,166.67,38.1915417]
[1717204434090,5.52,166.74,166.68,5.52]
[1717204434270,5.52,166.74,166.67,38.1915417]
[1717204434589,5.52,166.73,166.67,43.7115417]
[1717204435170,5.52,166.73,166.68,6.9454]
[1717204435582,5.52,166.74,166.68,12.4654]
[1717204435970,5.52,166.74,166.69,1.18377307]
[1717204439078,5.52,166.74,166.68,6.9454]
[1717204440096,5.52,166.74,166.69,1.20739391]
[1717204440290,5.52,166.74,166.68,6.9454]
[1717204440892,2.2186,166.77,166.68,60.9554]
[1717204441091,5.52,166.75,166.68,60.9554]
[1717204441977,2.2184,166.79,166.7,18.0]
[1717204442304,5.52,166.77,166.71,5.86]
[1717204442604,5.52,166.77,166.71,6.65034735]
[1717204442979,5.52,166.77,166.71,23.86]
[1717204443283,5.52,166.76,166.71,24.8002]
[1717204444601,5.52,166.76,166.71,18.34]
[1717204444896,5.52,166.76,166.71,24.8002]
[1717204445300,2.2183,166.79,166.71,30.3202]
[1717204445500,5.52,166.77,166.71,30.3202]
[1717204447586,5.52,166.77,166.71,12.3202]
[1717204447893,5.52,166.76,166.71,6.6302]
[1717204448198,5.52,166.76,166.71,6.4602]
[1717204449288,5.52,166.75,166.68,69.1164]
[1717204449476,5.52,166.75,166.69,5.86]
[1717204450106,5.52,166.74,166.69,0.34]
[1717204450492,5.52,166.74,166.69,6.8002]
[1717204452781,5.52,166.74,166.69,24.8002]
[1717204453196,5.52,166.75,166.69,30.3202]
[1717204456308,5.52,166.76,166.7,23.52]
[1717204456501,5.52,166.76,166.71,7.0065]
[1717204457004,5.52,166.77,166.71,30.5265]
[1717204457195,2.2183,166.79,166.71,90.5265]
[1717204457395,5.52,166.77,166.71,90.5265]
[1717204457591,5.52,166.77,166.71,30.5265]
[1717204459694,2.2182,166.8,166.71,30.5265]
[1717204460019,5.52,166.78,166.71,30.5265]
[1717204460317,2.2182,166.8,166.71,30.5265]
[1717204460614,5.52,166.78,166.71,30.5265]
[1717204461110,5.52,166.78,166.72,23.52]
[1717204461302,5.52,166.78,166.73,7.0023]
[1717204464421,5.52,166.78,166.74,6.6623]
[1717204465128,5.52,166.79,166.74,6.6623]
[1717204465913,2.2181,166.81,166.74,6.6623]
[1717204466215,5.52,166.79,166.74,6.6623]
[1717204475930,5.52,166.79,166.73,30.0426]
[1717204483537,5.52,166.79,166.73,24.5226]
[1717204483922,5.52,166.79,166.73,30.0426]
[1717204485331,5.52,166.79,166.73,24.5226]
[1717204485632,5.52,166.79,166.73,30.0426]
[1717204487831,5.52,166.78,166.73,6.5226]
[1717204489633,5.52,166.77,166.73,6.5226]
[1717204489832,5.52,166.77,166.73,6.1826]
[1717204491843,5.52,166.76,166.7,78.0]
[1717204492144,5.52,166.74,166.7,84.1598]
[1717204492843,2.2183,166.79,166.7,84.1598]
[1717204493048,5.52,166.75,166.7,84.1598]
[1717204493220,5.52,166.75,166.71,6.1598]
[1717204494418,2.2183,166.79,166.71,6.1598]
[1717204494614,5.52,166.75,166.71,6.1598]
[1717204495644,2.2183,166.79,166.71,6.1598]
[1717204495847,5.52,166.76,166.71,6.1598]
[1717204498047,2.2185,166.78,166.72,21.762]
[1717204498230,5.52,166.77,166.73,21.762]
[1717204498422,5.52,166.78,166.74,6.6477]
[1717204502119,6.6519,166.87,166.75,24.5826]
[1717204502325,5.52,166.82,166.76,78.17]
[1717204502549,2.2175,166.85,166.77,0.17]
[1717204502855,2.2174,166.86,166.77,0.17]
[1717204503025,5.52,166.84,166.78,78.0]
[1717204503340,2.2171,166.88,166.81,15.8223]
[1717204503748,2.217,166.89,166.81,15.8223]
[1717204503948,2.217,166.89,166.81,39.97292365]
[1717204504130,5.52,166.87,166.81,39.97292365]
[1717204505025,5.52,166.87,166.81,39.3423]
[1717204507851,5.52,166.87,166.81,15.8223]
[1717204508058,5.52,166.83,166.8,6.4126]
[1717204508232,5.52,166.82,166.8,6.4126]
[1717204508433,5.52,166.82,166.77,15.8223]
[1717204508627,5.52,166.82,166.78,6.4126]
[1717204508828,5.52,166.83,166.78,15.8223]
[1717204509127,5.52,166.83,166.79,6.4126]
[1717204511052,5.52,166.82,166.79,6.4126]
[1717204511234,2.2175,166.85,166.79,6.4126]
[1717204511555,5.52,166.82,166.79,6.4126]
[1717204511755,5.52,166.83,166.79,6.4126]
[1717204513626,2.2171,166.89,166.8,23.69]
[1717204513934,5.52,166.86,166.8,23.69]
[1717204514151,5.52,166.87,166.83,6.4126]
[1717204515056,2.2169,166.9,166.83,6.4126]
[1717204515352,2.2167,166.92,166.83,24.0732]
[1717204515556,2.2167,166.91,166.84,5.86]
[1717204515930,4.4326,166.95,166.84,23.86]
[1717204515931,2.2166,166.92,166.84,23.86]
[1717204516152,5.52,166.9,166.84,23.86]
[1717204517954,5.52,166.88,166.84,6.4132]
[1717204518151,5.52,166.88,166.84,6.0732]
[1717204518642,5.52,166.87,166.84,6.0732]
[1717204520537,5.52,166.87,166.81,21.5348]
[1717204520844,5.52,166.86,166.82,6.888]
[1717204521754,2.2169,166.9,166.82,6.888]
[1717204522065,5.52,166.86,166.82,6.888]
[1717204522634,5.52,166.86,166.82,6.548]
[1717204522841,5.52,166.84,166.78,5.52]
[1717204523062,5.52,166.88,166.77,23.0435]
[1717204523063,5.52,166.83,166.77,23.0435]
[1717204523387,5.52,166.82,166.78,6.548]
[1717204523569,5.52,166.83,166.78,6.548]
[1717204525386,5.52,166.83,166.77,41.3835]
[1717204525559,5.52,166.83,166.79,6.548]
[1717204529165,2.2174,166.86,166.79,6.548]
[1717204529878,2.2174,166.86,166.77,16.8355]
[1717204530094,5.52,166.82,166.77,0.34]
[1717204530387,5.52,166.82,166.75,30.068]
[1717204530572,5.52,166.82,166.76,0.34]
[1717204530983,4.4349,166.86,166.75,24.548]
[1717204531168,5.52,166.8,166.75,6.548]
[1717204531571,5.52,166.81,166.75,12.068]
[1717204531785,2.2175,166.85,166.77,23.52]
[1717204531992,5.52,166.83,166.75,42.558]
[1717204532290,5.52,166.83,166.76,23.86]
[1717204535320,5.52,166.82,166.76,23.86]
[1717204535618,5.52,166.83,166.76,23.86]
[1717204535807,2.2175,166.85,166.76,78.34]
[1717204536008,5.52,166.84,166.77,23.52]
[1717204536519,5.52,166.83,166.77,23.52]
[1717204539526,5.52,166.83,166.76,23.86]
[1717204541700,4.4347,166.87,166.75,6.548]
[1717204541901,5.52,166.81,166.75,12.068]
[1717204543122,5.52,166.81,166.75,5.52]
[1717204543322,5.52,166.81,166.73,16.4955]
[1717204543323,5.52,166.79,166.72,54.01]
[1717204543532,5.52,166.78,166.73,5.7040174]
[1717204544106,5.52,166.77,166.73,5.7040174]
[1717204544525,5.52,166.77,166.74,5.7040174]
[1717204544713,5.52,166.77,166.71,6.3572]
[1717204544909,5.52,166.77,166.72,5.70404297]
[1717204546126,5.52,166.76,166.72,5.70404297]
[1717204546322,5.52,166.76,166.73,5.70404297]
[1717204546524,5.52,166.76,166.7,23.52]
[1717204546717,5.52,166.76,166.71,5.70456082]
[1717204547122,5.52,166.75,166.71,5.70456082]
[1717204549437,2.2185,166.78,166.71,5.70456082]
[1717204550819,2.2183,166.79,166.71,5.70456082]
[1717204551019,2.2183,166.79,166.72,24.3572]
[1717204551330,7.7384,166.78,166.73,6.04456082]
[1717204551635,7.7384,166.78,166.73,0.34]
[1717204551836,7.7384,166.78,166.74,5.70425132]
[1717204552138,5.52,166.78,166.74,5.70425132]
[1717204552547,5.52,166.77,166.71,5.52]
[1717204552727,7.7385,166.78,166.72,11.22426209]
[1717204553037,7.7385,166.78,166.73,5.70426209]
[1717204553223,5.52,166.78,166.73,5.70426209]
[1717204555339,7.7385,166.78,166.73,5.70426209]
[1717204555648,5.52,166.77,166.7,23.86]
[1717204555820,5.52,166.77,166.71,5.70466082]
[1717204556437,2.2185,166.78,166.71,5.70466082]
[1717204556618,5.52,166.77,166.71,11.22466082]
[1717204556817,2.2185,166.78,166.72,5.70466082]
[1717204557017,5.52,166.77,166.72,5.70466082]
[1717204558849,5.52,166.76,166.73,5.70466082]
[1717204559027,5.52,166.76,166.71,5.70466082]
[1717204559229,5.52,166.76,166.72,5.70482648]
[1717204559425,5.52,166.76,166.73,5.70482648]
[1717204559632,5.52,166.76,166.7,23.86]
[1717204559930,5.52,166.76,166.71,5.70484631]
[1717204560641,2.2185,166.78,166.71,5.70484631]
[1717204560861,5.52,166.77,166.71,5.70484631]
[1717204561743,5.52,166.74,166.71,5.70484631]
[1717204561938,5.52,166.74,166.69,5.70484631]
[1717204562244,5.52,166.73,166.7,5.70484631]
[1717204562439,5.52,166.73,166.71,5.70484631]
[1717204562642,5.52,166.73,166.69,5.70484631]
[1717204562944,5.52,166.74,166.7,5.70484631]
[1717204563126,5.52,166.75,166.69,29.22484631]
[1717204563317,5.52,166.75,166.7,5.70484631]
[1717204564542,2.2187,166.76,166.7,5.70484631]
[1717204564846,5.52,166.75,166.7,5.70484631]
[1717204565749,5.52,166.75,166.69,83.52]
[1717204565954,5.52,166.75,166.71,5.70549258]
[1717204566143,5.52,166.75,166.72,5.70549258]
[1717204566320,5.52,166.75,166.7,5.70549258]
[1717204567248,2.2187,166.76,166.7,5.70549258]
[1717204567448,5.52,166.74,166.7,5.70549258]
[1717204567624,4.4287,166.78,166.71,5.70549258]
[1717204567950,5.52,166.72,166.67,0.1915417]
[1717204568149,5.52,166.71,166.68,5.70667356]
[1717204568640,5.52,166.72,166.68,5.70667356]
[1717204570032,2.219,166.74,166.68,5.70667356]
[1717204570233,5.52,166.72,166.68,5.70667356]
[1717204576053,2.219,166.74,166.68,5.70667356]
[1717204576254,5.52,166.72,166.68,5.70667356]
[1717204577659,2.2189,166.75,166.68,5.70667356]
[1717204577834,5.52,166.74,166.68,5.70667356]
[1717204583377,5.52,166.72,166.68,5.70667356]
[1717204586148,5.52,166.71,166.68,5.70667356]
[1717204586360,5.52,166.72,166.68,5.70667356]
[1717204588352,5.52,166.72,166.69,5.70667356]
[1717204588549,5.52,166.72,166.68,5.70667356]
[1717204588873,5.52,166.72,166.69,5.70667356]
[1717204589166,5.52,166.72,166.7,5.70667356]
[1717204589471,5.52,166.72,166.71,5.70667356]
[1717204589846,5.52,166.72,166.68,5.70667356]
[1717204590051,5.52,166.72,166.69,5.70667356]
[1717204590253,5.52,166.72,166.67,0.1915417]
[1717204590254,5.52,166.72,166.68,5.70667356]
[1717204590463,5.52,166.72,166.69,5.70667356]
[1717204590754,5.52,166.72,166.7,5.70667356]
[1717204591074,5.52,166.72,166.71,5.70667356]
[1717204591267,5.52,166.72,166.68,5.70667356]
[1717204591471,5.52,166.72,166.69,5.70667356]